[Event "Ebbe cup 43"]
[Site "Schackcentrum, Vegatan 20, Gothenburg, Sweden"]
[Date "2022.09.10"]
[Round "2.4"]
[White "Andersson, Sol"]
[Black "Madevan Vaishnavi, Yaashvan"]
[Result "1-0"]
[TimeControl "90 minutes for 40 moves + 15 minutes for the rest of the game + 30 seconds per move from move one."]
[WhiteFideId "1762702"]
[BlackFideId "1772180"]
[WhiteElo "1454"]
[BlackElo "1439"]

1. e4 {[%clk 01:30:58]} {[%emt 00:00:02]} d6 {[%clk 01:30:53]} {[%emt
00:00:08]} 2. d4 {[%clk 01:31:10]} {[%emt 00:00:17]} Nf6 {[%clk 01:31:14]}
{[%emt 00:00:09]} 3. Nc3 {[%clk 01:31:18]} {[%emt 00:00:22]} g6 {[%clk
01:31:29]} {[%emt 00:00:15]} 4. Bc4 {[%clk 01:30:57]} {[%emt 00:00:51]} Bg7
{[%clk 01:31:46]} {[%emt 00:00:13]} 5. Nf3 {[%clk 01:31:01]} {[%emt 00:00:25]}
O-O {[%clk 01:31:20]} {[%emt 00:00:56]} 6. Bg5 {[%clk 01:31:03]} {[%emt
00:00:29]} h6 {[%clk 01:29:13]} {[%emt 00:02:37]} 7. Be3 {[%clk 01:30:06]}
{[%emt 00:01:25]} c6 {[%clk 01:26:40]} {[%emt 00:03:06]} 8. e5 {[%clk
01:26:00]} {[%emt 00:04:35]} dxe5 {[%clk 01:25:08]} {[%emt 00:02:02]} 9. Nxe5
{[%clk 01:26:11]} {[%emt 00:00:18]} Nbd7 {[%clk 01:22:52]} {[%emt 00:02:46]} 10.
Nxg6 {[%clk 01:25:27]} {[%emt 00:01:13]} Re8 {[%clk 01:21:19]} {[%emt
00:02:04]} 11. Nf4 {[%clk 01:21:36]} {[%emt 00:04:20]} b5 {[%clk 01:20:08]}
{[%emt 00:01:42]} 12. Bb3 {[%clk 01:21:27]} {[%emt 00:00:38]} Bb7 {[%clk
01:19:09]} {[%emt 00:01:29]} 13. O-O {[%clk 01:19:59]} {[%emt 00:01:56]} Nb6
{[%clk 01:17:12]} {[%emt 00:02:29]} 14. Nh5 {[%clk 01:18:17]} {[%emt 00:02:10]}
e6 {[%clk 01:16:25]} {[%emt 00:01:20]} 15. Nxg7 {[%clk 01:17:27]} {[%emt
00:01:19]} Kxg7 {[%clk 01:15:25]} {[%emt 00:01:26]} 16. Qf3 {[%clk 01:16:19]}
{[%emt 00:01:42]} Rg8 {[%clk 01:12:02]} {[%emt 00:03:53]} 17. Qh3 {[%clk
01:13:21]} {[%emt 00:03:28]} h5 {[%clk 01:10:59]} {[%emt 00:01:33]} 18. Ne2
{[%clk 01:08:47]} {[%emt 00:05:04]} Kh8 {[%clk 01:10:25]} {[%emt 00:01:04]} 19.
Nf4 {[%clk 01:07:25]} {[%emt 00:01:51]} Rg7 {[%clk 01:09:16]} {[%emt 00:01:40]}
20. Nxh5 {[%clk 00:59:22]} {[%emt 00:08:32]} Rh7 {[%clk 01:07:17]} {[%emt
00:02:28]} 21. Bg5 {[%clk 00:58:34]} {[%emt 00:01:17]} Nbd7 {[%clk 01:05:23]}
{[%emt 00:02:27]} 22. Qf3 {[%clk 00:56:53]} {[%emt 00:02:10]} Rxh5 {[%clk
01:04:13]} {[%emt 00:01:41]} 23. Qxh5+ {[%clk 00:57:05]} {[%emt 00:00:18]} Nxh5
{[%clk 01:04:32]} {[%emt 00:00:11]} 24. Bxd8 {[%clk 00:57:32]} {[%emt
00:00:04]} Rxd8 {[%clk 01:04:39]} {[%emt 00:00:23]} 25. a4 {[%clk 00:57:04]}
{[%emt 00:00:58]} Rg8 {[%clk 01:03:12]} {[%emt 00:01:57]} 26. g3 {[%clk
00:55:14]} {[%emt 00:02:18]} Nf4 {[%clk 01:02:12]} {[%emt 00:01:31]} 27. Rfe1
{[%clk 00:54:10]} {[%emt 00:01:33]} c5 {[%clk 01:01:42]} {[%emt 00:01:02]} 28.
axb5 {[%clk 00:52:32]} {[%emt 00:02:07]} Nf6 {[%clk 00:57:52]} {[%emt
00:04:19]} 29. Rxa7 {[%clk 00:50:48]} {[%emt 00:02:15]} Bf3 {[%clk 00:56:03]}
{[%emt 00:02:20]} 30. Rxf7 {[%clk 00:48:53]} {[%emt 00:02:25]} Be2 {[%clk
00:53:12]} {[%emt 00:03:21]} 31. Rxe2 {[%clk 00:47:11]} {[%emt 00:02:12]} Nxe2+
{[%clk 00:53:28]} {[%emt 00:00:10]} 32. Kf1 {[%clk 00:47:36]} {[%emt 00:00:09]}
Nxd4 {[%clk 00:53:23]} {[%emt 00:00:35]} 33. Rxf6 {[%clk 00:47:58]} {[%emt
00:00:08]} Rb8 {[%clk 00:52:37]} {[%emt 00:01:15]} 34. Bxe6 {[%clk 00:45:59]}
{[%emt 00:02:29]} Rxb5 {[%clk 00:52:40]} {[%emt 00:00:27]} 35. c3 {[%clk
00:45:56]} {[%emt 00:00:34]} Nxe6 {[%clk 00:52:18]} {[%emt 00:00:51]} 36. Rxe6
{[%clk 00:46:24]} {[%emt 00:00:02]} Kg7 {[%clk 00:52:38]} {[%emt 00:00:11]} 37.
b4 {[%clk 00:46:32]} {[%emt 00:00:22]} cxb4 {[%clk 00:52:48]} {[%emt 00:00:19]}
38. cxb4 {[%clk 00:46:52]} {[%emt 00:00:11]} Rxb4 {[%clk 00:53:13]} {[%emt
00:00:05]} 39. Kg2 {[%clk 00:47:19]} {[%emt 00:00:03]} Rb2 {[%clk 00:52:47]}
{[%emt 00:00:56]} 40. Kf3 {[%clk 00:47:33]} {[%emt 00:00:15]} Kf7 {[%clk
00:52:59]} {[%emt 00:00:19]} 41. Re3 {[%clk 00:47:42]} {[%emt 00:00:21]} Rb4
{[%clk 00:53:00]} {[%emt 00:00:29]} 42. h4 {[%clk 00:47:50]} {[%emt 00:00:21]}
Kg6 {[%emt 00:00:27]} 43. Re4 {[%emt 00:00:22]} Rb5 {[%clk 00:52:03]} {[%emt
00:00:39]} 44. Kg4 {[%clk 00:48:06]} {[%emt 00:00:13]} Rb6 {[%clk 00:51:25]}
{[%emt 00:01:08]} 45. f4 {[%clk 00:48:19]} {[%emt 00:00:17]} Kg7 {[%clk
00:50:57]} {[%emt 00:00:58]} 46. Re5 {[%clk 00:48:38]} {[%emt 00:00:10]} Rf6
{[%clk 00:50:41]} {[%emt 00:00:45]} 47. h5 {[%clk 00:48:16]} {[%emt 00:00:51]}
Rc6 {[%clk 00:49:56]} {[%emt 00:01:16]} 48. Kg5 {[%clk 00:48:20]} {[%emt
00:00:26]} Rc3 {[%clk 00:48:56]} {[%emt 00:01:31]} 49. g4 {[%clk 00:48:38]}
{[%emt 00:00:12]} Rg3 {[%clk 00:49:11]} {[%emt 00:00:15]} 50. f5 {[%clk
00:48:49]} {[%emt 00:00:20]} Kg8 {[%clk 00:48:10]} {[%emt 00:01:31]} 51. f6
{[%clk 00:48:39]} {[%emt 00:00:40]} Rg1 {[%clk 00:46:56]} {[%emt 00:01:44]} 52.
h6 {[%clk 00:48:51]} {[%emt 00:00:18]} Kf7 {[%clk 00:45:34]} {[%emt 00:01:52]}
53. h7 {[%clk 00:47:20]} {[%emt 00:02:00]} Rh1 {[%clk 00:45:45]} {[%emt
00:00:21]} 54. Kf5 {[%clk 00:47:32]} {[%emt 00:00:18]} Rf1+ {[%clk 00:45:26]}
{[%emt 00:00:48]} 55. Kg5 {[%clk 00:47:48]} {[%emt 00:00:15]} Rh1 {[%clk
00:45:41]} {[%emt 00:00:15]} 56. Re7+ {[%clk 00:47:51]} {[%emt 00:00:28]} Kf8
{[%clk 00:45:59]} {[%emt 00:00:13]} 57. Rc7 {[%clk 00:48:07]} {[%emt 00:00:13]}
Ke8 {[%clk 00:44:33]} {[%emt 00:01:52]} 58. h8=Q+ {[%clk 00:48:07]} {[%emt
00:00:34]} Rxh8 {[%clk 00:44:38]} {[%emt 00:00:18]} 59. Rc8+ {[%clk 00:48:35]}
{[%emt 00:00:09]} Kd7 {[%clk 00:44:55]} {[%emt 00:00:14]} 60. Rxh8 {[%clk
00:48:56]} {[%emt 00:00:08]} Ke6 {[%clk 00:45:17]} {[%emt 00:00:08]} 61. Kg6
{[%clk 00:49:12]} {[%emt 00:00:14]} Kd5 {[%clk 00:45:40]} {[%emt 00:00:08]} 62.
f7 {[%clk 00:49:35]} {[%emt 00:00:06]} Kd4 {[%emt 00:00:30]} 63. f8=Q {[%emt
00:00:12]} Kd5 {[%clk 00:45:12]} {[%emt 00:00:16]} 64. Qe7 {[%clk 00:49:52]}
{[%emt 00:00:13]} Kd4 {[%clk 00:45:30]} {[%emt 00:00:12]} 65. Rd8+ {[%clk
00:50:16]} {[%emt 00:00:06]} Kc4 {[%clk 00:45:24]} {[%emt 00:00:36]} 66. Qc7+
{[%clk 00:50:38]} {[%emt 00:00:07]} Kb4 {[%clk 00:45:37]} {[%emt 00:00:18]} 67.
Rb8+ {[%clk 00:51:05]} {[%emt 00:00:03]} Ka4 {[%clk 00:45:55]} {[%emt
00:00:12]} 68. Qa7# {[%clk 00:50:55]} 1-0

[Event "Ebbe cup 43"]
[Site "Schackcentrum, Vegatan 20, Gothenburg, Sweden"]
[Date "2022.09.10"]
[Round "2.5"]
[White "Dahlin, Emil"]
[Black "Konduru, Sairahul"]
[Result "0-1"]
[TimeControl "90 minutes for 40 moves + 15 minutes for the rest of the game + 30 seconds per move from move one."]
[WhiteFideId "1771035"]
[BlackFideId "1768247"]
[WhiteElo "1133"]
[BlackElo "1281"]

1. e4 {[%clk 01:30:57]} {[%emt 00:00:01]} c6 {[%clk 01:30:51]} {[%emt
00:00:11]} 2. d4 {[%clk 01:30:35]} {[%emt 00:00:52]} d5 {[%clk 01:31:07]}
{[%emt 00:00:09]} 3. e5 {[%clk 01:30:38]} {[%emt 00:00:30]} c5 {[%clk
01:31:23]} {[%emt 00:00:14]} 4. c3 {[%clk 01:30:47]} {[%emt 00:00:22]} Nc6
{[%clk 01:31:36]} {[%emt 00:00:17]} 5. Nf3 {[%clk 01:30:28]} {[%emt 00:00:48]}
cxd4 {[%clk 01:31:49]} {[%emt 00:00:18]} 6. cxd4 {[%clk 01:30:47]} {[%emt
00:00:11]} Bg4 {[%clk 01:32:06]} {[%emt 00:00:12]} 7. Be2 {[%clk 01:29:54]}
{[%emt 00:01:23]} Qb6 {[%clk 01:30:57]} {[%emt 00:01:40]} 8. Nc3 {[%clk
01:15:40]} {[%emt 00:14:44]} e6 {[%clk 01:25:16]} {[%emt 00:06:11]} 9. a3
{[%clk 01:14:25]} {[%emt 00:01:45]} Bxf3 {[%clk 01:22:39]} {[%emt 00:03:06]} 10.
Bxf3 {[%clk 01:13:43]} {[%emt 00:01:12]} Qxd4 {[%clk 01:15:08]} {[%emt
00:08:01]} 11. Qxd4 {[%clk 01:12:54]} {[%emt 00:01:19]} Nxd4 {[%clk 01:15:00]}
{[%emt 00:00:38]} 12. Rb1 {[%clk 01:10:30]} {[%emt 00:02:54]} Nxf3+ {[%clk
01:10:59]} {[%emt 00:04:31]} 13. gxf3 {[%clk 01:10:47]} {[%emt 00:00:13]} a6
{[%clk 01:10:30]} {[%emt 00:00:59]} 14. Be3 {[%clk 01:08:17]} {[%emt 00:03:00]}
O-O-O {[%clk 01:08:19]} {[%emt 00:02:41]} 15. Bb6 {[%clk 01:08:08]} {[%emt
00:00:38]} Rd7 {[%clk 01:07:40]} {[%emt 00:01:09]} 16. Rc1 {[%clk 01:07:29]}
{[%emt 00:01:10]} Kb8 {[%clk 01:07:34]} {[%emt 00:00:35]} 17. O-O {[%clk
01:06:47]} {[%emt 00:01:12]} Be7 {[%clk 01:06:07]} {[%emt 00:01:58]} 18. Rc2
{[%clk 01:05:38]} {[%emt 00:01:39]} Nh6 {[%clk 01:04:36]} {[%emt 00:02:00]} 19.
Rfc1 {[%clk 01:04:40]} {[%emt 00:01:28]} Rc8 {[%clk 01:04:12]} {[%emt
00:00:55]} 20. Na4 {[%clk 00:59:08]} {[%emt 00:06:02]} Rxc2 {[%emt 00:02:06]}
21. Rxc2 {[%clk 00:59:18]} Nf5 {[%clk 01:00:58]} {[%emt 00:02:28]} 22. Kf1
{[%clk 00:57:18]} {[%emt 00:02:28]} Nh4 {[%clk 00:56:09]} {[%emt 00:05:20]} 23.
Ke2 {[%clk 00:56:24]} {[%emt 00:01:24]} d4 {[%clk 00:56:21]} {[%emt 00:00:19]}
24. Rd2 {[%clk 00:56:10]} {[%emt 00:00:44]} d3+ {[%clk 00:55:52]} {[%emt
00:00:58]} 25. Ke3 {[%clk 00:54:03]} {[%emt 00:02:36]} Bg5+ {[%clk 00:51:33]}
{[%emt 00:04:50]} 26. f4 {[%clk 00:53:34]} {[%emt 00:00:58]} Ng2+ {[%clk
00:51:03]} {[%emt 00:01:01]} 27. Ke4 {[%clk 00:51:48]} {[%emt 00:02:17]} Nxf4
{[%clk 00:50:50]} {[%emt 00:00:41]} 28. Be3 {[%clk 00:50:53]} {[%emt 00:01:26]}
Kc7 {[%clk 00:47:56]} {[%emt 00:03:23]} 29. Bxf4 {[%clk 00:50:41]} {[%emt
00:00:43]} Bxf4 {[%clk 00:48:18]} {[%emt 00:00:08]} 30. Kxf4 {[%clk 00:50:52]}
{[%emt 00:00:18]} Rd4+ {[%emt 00:00:16]} 31. Ke3 {[%clk 00:50:44]} {[%emt
00:00:36]} Rxa4 {[%clk 00:48:48]} {[%emt 00:00:18]} 32. Kxd3 {[%clk 00:50:45]}
{[%emt 00:00:29]} Ra5 {[%clk 00:48:39]} {[%emt 00:00:36]} 33. Re2 {[%clk
00:50:31]} {[%emt 00:00:46]} Kc6 {[%clk 00:47:12]} {[%emt 00:01:56]} 34. Re4
{[%clk 00:48:23]} {[%emt 00:02:40]} Rb5 {[%clk 00:44:57]} {[%emt 00:02:42]} 35.
b4 {[%clk 00:48:14]} {[%emt 00:00:42]} Rd5+ {[%clk 00:44:48]} {[%emt 00:00:39]}
36. Rd4 {[%clk 00:46:30]} {[%emt 00:02:14]} Rxd4+ {[%clk 00:43:28]} {[%emt
00:01:50]} 37. Kxd4 {[%clk 00:46:45]} {[%emt 00:00:16]} Kb5 {[%clk 00:43:46]}
{[%emt 00:00:12]} 38. Kc3 {[%clk 00:47:00]} {[%emt 00:00:14]} Ka4 {[%clk
00:40:14]} {[%emt 00:04:03]} 39. Kb2 {[%clk 00:47:05]} {[%emt 00:00:25]} f6
{[%clk 00:40:32]} {[%emt 00:00:10]} 40. f4 {[%clk 00:45:53]} {[%emt 00:01:44]}
fxe5 {[%clk 00:40:34]} {[%emt 00:00:28]} 41. fxe5 {[%clk 00:45:25]} {[%emt
00:00:58]} g5 {[%clk 00:40:15]} {[%emt 00:00:49]} 42. Kc2 {[%clk 00:40:18]}
{[%emt 00:05:37]} h5 {[%clk 00:39:50]} {[%emt 00:00:55]} 43. Kd2 {[%clk
00:40:32]} {[%emt 00:00:15]} Kxa3 {[%clk 00:39:56]} {[%emt 00:00:23]} 44. Ke3
{[%clk 00:40:22]} {[%emt 00:00:40]} Kxb4 {[%clk 00:40:16]} {[%emt 00:00:11]} 45.
Kf3 {[%clk 00:40:26]} {[%emt 00:00:27]} a5 {[%clk 00:40:35]} {[%emt 00:00:11]}
46. Kg3 {[%clk 00:40:29]} {[%emt 00:00:26]} a4 {[%clk 00:40:57]} {[%emt
00:00:09]} 47. h4 {[%clk 00:40:23]} {[%emt 00:00:34]} gxh4+ {[%clk 00:41:21]}
{[%emt 00:00:08]} 48. Kxh4 {[%clk 00:39:32]} {[%emt 00:01:21]} a3 {[%clk
00:41:46]} {[%emt 00:00:05]} 49. Kxh5 {[%clk 00:39:30]} {[%emt 00:00:31]} a2
{[%clk 00:41:23]} {[%emt 00:00:55]} 50. Kg6 {[%clk 00:39:42]} {[%emt 00:00:18]}
a1=Q {[%emt 00:00:23]} 51. Kf6 {[%clk 00:40:02]} {[%emt 00:00:08]} Qa2 {[%clk
00:41:38]} {[%emt 00:00:23]} 0-1

[Event "Ebbe cup 43"]
[Site "Schackcentrum, Vegatan 20, Gothenburg, Sweden"]
[Date "2022.09.10"]
[Round "3.1"]
[White "Ghaderi, Roshan"]
[Black "Imani Lasaki, Hamed"]
[Result "1-0"]
[TimeControl "90 minutes for 40 moves + 15 minutes for the rest of the game + 30 seconds per move from move one."]
[WhiteFideId "1744011"]
[BlackFideId "1766970"]
[WhiteElo "1741"]
[BlackElo "1595"]

1. e4 {[%clk 01:30:57]} {[%emt 00:00:03]} e5 {[%clk 01:30:52]} {[%emt
00:00:09]} 2. Nf3 {[%clk 01:31:19]} {[%emt 00:00:07]} Nc6 {[%clk 01:31:19]}
{[%emt 00:00:03]} 3. d4 {[%clk 01:31:42]} {[%emt 00:00:07]} exd4 {[%clk
01:31:05]} {[%emt 00:00:45]} 4. Bc4 {[%clk 01:32:05]} {[%emt 00:00:07]} d6
{[%clk 01:24:20]} {[%emt 00:07:15]} 5. Nxd4 {[%clk 01:32:15]} {[%emt 00:00:19]}
Ne5 {[%clk 01:22:25]} {[%emt 00:02:25]} 6. Bb3 {[%clk 01:32:22]} {[%emt
00:00:23]} Nf6 {[%clk 01:22:12]} {[%emt 00:00:42]} 7. O-O {[%clk 01:32:32]}
{[%emt 00:00:20]} Bd7 {[%clk 01:18:17]} {[%emt 00:04:25]} 8. Nc3 {[%clk
01:28:55]} {[%emt 00:04:07]} a6 {[%clk 01:15:07]} {[%emt 00:03:40]} 9. Bg5
{[%clk 01:28:35]} {[%emt 00:00:49]} c5 {[%clk 01:09:38]} {[%emt 00:05:59]} 10.
Bxf6 {[%clk 01:27:15]} {[%emt 00:01:49]} gxf6 {[%clk 01:08:42]} {[%emt
00:01:26]} 11. Nf3 {[%clk 01:27:36]} {[%emt 00:00:10]} Bg4 {[%clk 01:06:56]}
{[%emt 00:02:15]} 12. Nxe5 {[%emt 00:01:27]} fxe5 {[%clk 00:53:07]} {[%emt
00:14:16]} 13. Qxg4 {[%clk 01:25:58]} {[%emt 00:01:14]} h5 {[%clk 00:52:32]}
{[%emt 00:01:06]} 14. Qf5 {[%clk 01:25:54]} {[%emt 00:00:33]} f6 {[%clk
00:47:56]} {[%emt 00:05:07]} 15. Qe6+ {[%clk 01:25:28]} {[%emt 00:00:55]} Be7
{[%clk 00:46:14]} {[%emt 00:02:12]} 16. Nd5 {[%clk 01:25:53]} {[%emt 00:00:05]}
Rf8 {[%clk 00:45:34]} {[%emt 00:01:11]} 17. Qxe7+ {[%clk 01:23:57]} {[%emt
00:02:26]} Qxe7 {[%clk 00:46:01]} {[%emt 00:00:04]} 18. Nxe7 {[%clk 01:24:19]}
{[%emt 00:00:08]} Kxe7 {[%clk 00:46:24]} {[%emt 00:00:06]} 19. Bd5 {[%clk
01:24:36]} {[%emt 00:00:13]} Rab8 {[%clk 00:45:29]} {[%emt 00:01:26]} 20. f4
{[%clk 01:24:56]} {[%emt 00:00:10]} b5 {[%clk 00:42:55]} {[%emt 00:03:04]} 21.
fxe5 {[%clk 01:25:14]} {[%emt 00:00:12]} dxe5 {[%clk 00:43:07]} {[%emt
00:00:17]} 22. Rf5 {[%clk 01:25:37]} {[%emt 00:00:07]} Rh8 {[%clk 00:42:15]}
{[%emt 00:01:22]} 23. Raf1 {[%clk 01:25:57]} {[%emt 00:00:09]} Rb6 {[%clk
00:42:43]} {[%emt 00:00:03]} 24. R1f3 {[%clk 01:26:03]} {[%emt 00:00:23]} h4
{[%clk 00:41:36]} {[%emt 00:01:37]} 25. b3 {[%clk 01:25:22]} {[%emt 00:01:11]}
a5 {[%clk 00:41:16]} {[%emt 00:00:51]} 26. Rc3 {[%clk 01:24:29]} {[%emt
00:01:23]} Rc8 {[%clk 00:37:21]} {[%emt 00:04:26]} 27. Rh5 {[%clk 01:21:24]}
{[%emt 00:03:34]} c4 {[%clk 00:33:00]} {[%emt 00:04:52]} 28. Rf3 {[%clk
01:20:26]} {[%emt 00:01:27]} cxb3 {[%clk 00:29:59]} {[%emt 00:03:32]} 29. Bxb3
{[%clk 01:19:16]} {[%emt 00:01:40]} a4 {[%clk 00:30:07]} {[%emt 00:00:22]} 30.
Rh7+ {[%clk 01:19:35]} {[%emt 00:00:10]} Kd6 {[%clk 00:30:20]} {[%emt
00:00:18]} 31. Rxf6+ {[%clk 01:18:45]} {[%emt 00:01:20]} Kc5 {[%clk 00:30:48]}
{[%emt 00:00:02]} 32. Rxb6 {[%clk 01:18:41]} {[%emt 00:00:35]} axb3 {[%clk
00:31:15]} {[%emt 00:00:04]} 33. axb3 {[%clk 01:17:59]} {[%emt 00:01:11]} Kxb6
{[%emt 00:00:17]} 34. c4 {[%clk 01:18:14]} bxc4 {[%clk 00:32:01]} {[%emt
00:00:11]} 35. bxc4 {[%clk 01:18:41]} {[%emt 00:00:04]} Rxc4 {[%clk 00:32:30]}
{[%emt 00:00:02]} 36. Rxh4 {[%clk 01:18:59]} {[%emt 00:00:11]} Kc5 {[%clk
00:32:33]} {[%emt 00:00:27]} 37. Kf2 {[%clk 01:19:13]} {[%emt 00:00:16]} Kd4
{[%clk 00:32:55]} {[%emt 00:00:08]} 38. Kf3 {[%clk 01:19:27]} {[%emt 00:00:16]}
Rc3+ {[%clk 00:33:14]} {[%emt 00:00:12]} 39. Kg4 {[%clk 01:17:35]} {[%emt
00:02:22]} Kxe4 {[%clk 00:33:30]} {[%emt 00:00:14]} 40. Kg5+ {[%clk 01:17:58]}
{[%emt 00:00:07]} Kd5 {[%clk 00:32:53]} {[%emt 00:01:07]} 41. g4 {[%clk
01:16:28]} {[%emt 00:02:00]} e4 {[%clk 00:29:49]} {[%emt 00:03:34]} 42. Rh8
{[%clk 01:16:45]} {[%emt 00:00:12]} Kd4 {[%clk 00:25:17]} {[%emt 00:05:02]} 43.
h4 {[%clk 01:16:42]} {[%emt 00:00:33]} Ke3 {[%clk 00:22:07]} {[%emt 00:03:41]}
44. h5 {[%clk 01:17:03]} {[%emt 00:00:09]} Rc5+ {[%clk 00:18:56]} {[%emt
00:03:41]} 45. Kh4 {[%clk 01:15:38]} {[%emt 00:01:55]} Kf2 {[%clk 00:13:28]}
{[%emt 00:05:57]} 46. Re8 {[%clk 01:15:49]} {[%emt 00:00:19]} e3 {[%clk
00:13:38]} {[%emt 00:00:20]} 47. h6 {[%clk 01:16:16]} {[%emt 00:00:04]} Rc1
{[%clk 00:12:18]} {[%emt 00:01:51]} 48. g5 {[%clk 01:16:06]} {[%emt 00:00:40]}
Rh1+ {[%clk 00:11:49]} {[%emt 00:00:58]} 49. Kg4 {[%clk 01:16:32]} {[%emt
00:00:04]} e2 {[%clk 00:12:05]} {[%emt 00:00:15]} 50. Kf5 {[%clk 01:16:26]}
{[%emt 00:00:36]} e1=Q {[%emt 00:00:56]} 51. Rxe1 {[%clk 01:16:39]} {[%emt
00:00:12]} Kxe1 {[%clk 00:12:13]} {[%emt 00:00:02]} 52. Kg6 {[%clk 01:16:58]}
{[%emt 00:00:11]} Kf2 {[%clk 00:11:51]} {[%emt 00:00:51]} 53. Kg7 {[%clk
01:17:02]} {[%emt 00:00:26]} Kg3 {[%clk 00:11:26]} {[%emt 00:00:56]} 54. g6
{[%clk 01:17:07]} {[%emt 00:00:25]} Kg4 {[%clk 00:09:13]} {[%emt 00:02:42]} 55.
h7 {[%clk 01:16:01]} {[%emt 00:01:37]} Kg5 {[%clk 00:09:38]} {[%emt 00:00:06]}
56. Kf7 {[%clk 01:16:26]} {[%emt 00:00:04]} Rf1+ {[%clk 00:09:05]} {[%emt
00:01:04]} 57. Ke6 {[%clk 01:16:17]} {[%emt 00:00:39]} Re1+ {[%clk 00:08:38]}
{[%emt 00:00:57]} 58. Kd5 {[%clk 01:16:15]} {[%emt 00:00:32]} Rd1+ {[%clk
00:08:43]} {[%emt 00:00:25]} 59. Ke4 {[%clk 01:16:31]} {[%emt 00:00:11]} Re1+
{[%clk 00:08:38]} {[%emt 00:00:37]} 60. Kf3 {[%clk 01:16:56]} {[%emt 00:00:05]}
Rh1 {[%clk 00:05:59]} {[%emt 00:03:09]} 61. g7 {[%clk 01:16:25]} {[%emt
00:01:01]} Rh3+ {[%clk 00:06:08]} {[%emt 00:00:20]} 62. Ke4 {[%clk 01:16:31]}
{[%emt 00:00:22]} Rh4+ {[%clk 00:06:36]} {[%emt 00:00:04]} 1-0